{"text_format":"3","workbook":"xlsx","n_sheets":3,"sheets":["Napirend","Eseményütemező","Időintervallumok"],"not_rendered":{"images":1,"defined_names":21},"read":"whole","date_system":"1900"}

{"sheet":"Napirend","index":0,"n_rows":75,"n_cols":13,"rows_kept":75,"merged":[[1,1,5,2],[2,12,4,12],[3,7,4,7],[5,12,7,12],[6,1,8,2],[8,12,10,12],[9,7,10,7],[10,1,10,2],[11,12,13,12],[14,12,16,12],[15,7,16,7],[17,12,19,12],[18,1,18,2],[20,12,22,12],[21,7,22,7],[23,12,25,12],[25,1,25,2],[26,7,27,7],[26,12,28,12],[29,12,31,12],[31,7,32,7],[32,12,34,12]]}
[null,"Napirend"]
[null,{"$f":"IFERROR(DAY(DátumÉrt),\"\")","v":6},null,null,"Időpont",{"$f":"IFERROR(UPPER(TEXT(DATE(JelentésÉv,HónapSzáma,JelentésNap),\"éééé.hh.nn\")),\"\")","v":"2019.09.06"},null,"PILLANTÁS A HÉTRE",{"$nulls":3},"JEGYZETEK/TEENDŐK"]
[{"$nulls":4},{"$f":"Időintervallumok!E3","v":"06:00:00"},{"$f":"IFERROR(INDEX(Eseményütemező[],MATCH(DATEVALUE(DátumÉrt)&Napirend[[#This Row],[Időpont]],DátumÉsIdőpontKeresése,0),3),\"\")","v":"Ébresztő"},null,{"$f":"IFERROR(TEXT(DATEVALUE(DátumÉrt)+1,\"nnnn\"),\"\")","v":"szombat"},{"$f":"IFERROR(INDEX(Eseményütemező[],MATCH($H$6&\"|\"&ROW(A1),Eseményütemező[EGYEDI ÉRTÉK (SZÁMÍTOTT)],0),2),\"\")","v":"06:30:00"},{"$f":"IFERROR(INDEX(Eseményütemező[],MATCH($H$6&\"|\"&ROW(A1),Eseményütemező[EGYEDI ÉRTÉK (SZÁMÍTOTT)],0),3),\"\")","v":"Reggeli"},null,null,"Ruhákat hazahozni a tisztítóból"]
[{"$nulls":4},{"$f":"Időintervallumok!E4","v":"06:15:00"},{"$f":"IFERROR(INDEX(Eseményütemező[],MATCH(DATEVALUE(DátumÉrt)&Napirend[[#This Row],[Időpont]],DátumÉsIdőpontKeresése,0),3),\"\")","v":""},null,{"$f":"IFERROR(TEXT(DATEVALUE(DátumÉrt)+1,\"n\"),\"\")","v":"7"},{"$f":"IFERROR(INDEX(Eseményütemező[],MATCH($H$6&\"|\"&ROW(A2),Eseményütemező[EGYEDI ÉRTÉK (SZÁMÍTOTT)],0),2),\"\")","v":"07:30:00"},{"$f":"IFERROR(INDEX(Eseményütemező[],MATCH($H$6&\"|\"&ROW(A2),Eseményütemező[EGYEDI ÉRTÉK (SZÁMÍTOTT)],0),3),\"\")","v":"Indulás a munkába"}]
[{"$nulls":4},{"$f":"Időintervallumok!E5","v":"06:30:00"},{"$f":"IFERROR(INDEX(Eseményütemező[],MATCH(DATEVALUE(DátumÉrt)&Napirend[[#This Row],[Időpont]],DátumÉsIdőpontKeresése,0),3),\"\")","v":"Zuhany"},null,null,{"$f":"IFERROR(INDEX(Eseményütemező[],MATCH($H$6&\"|\"&ROW(A3),Eseményütemező[EGYEDI ÉRTÉK (SZÁMÍTOTT)],0),2),\"\")","v":""},{"$f":"IFERROR(INDEX(Eseményütemező[],MATCH($H$6&\"|\"&ROW(A3),Eseményütemező[EGYEDI ÉRTÉK (SZÁMÍTOTT)],0),3),\"\")","v":""}]
[{"$nulls":4},{"$f":"Időintervallumok!E6","v":"06:45:00"},{"$f":"IFERROR(INDEX(Eseményütemező[],MATCH(DATEVALUE(DátumÉrt)&Napirend[[#This Row],[Időpont]],DátumÉsIdőpontKeresése,0),3),\"\")","v":""},null,{"$f":"IFERROR(DátumÉrt+1,\"\")","v":"2019-09-07"},{"$f":"IFERROR(INDEX(Eseményütemező[],MATCH($H$6&\"|\"&ROW(A4),Eseményütemező[EGYEDI ÉRTÉK (SZÁMÍTOTT)],0),2),\"\")","v":""},{"$f":"IFERROR(INDEX(Eseményütemező[],MATCH($H$6&\"|\"&ROW(A4),Eseményütemező[EGYEDI ÉRTÉK (SZÁMÍTOTT)],0),3),\"\")","v":""},null,null,"Telefoncéget felhívni"]
[null,{"$f":"IFERROR(TEXT(DátumÉrt,\"nnnn\"),\"\")","v":"péntek"},null,null,{"$f":"Időintervallumok!E7","v":"07:00:00"},{"$f":"IFERROR(INDEX(Eseményütemező[],MATCH(DATEVALUE(DátumÉrt)&Napirend[[#This Row],[Időpont]],DátumÉsIdőpontKeresése,0),3),\"\")","v":""},null,null,{"$f":"IFERROR(INDEX(Eseményütemező[],MATCH($H$6&\"|\"&ROW(A5),Eseményütemező[EGYEDI ÉRTÉK (SZÁMÍTOTT)],0),2),\"\")","v":""},{"$f":"IFERROR(INDEX(Eseményütemező[],MATCH($H$6&\"|\"&ROW(A5),Eseményütemező[EGYEDI ÉRTÉK (SZÁMÍTOTT)],0),3),\"\")","v":""}]
[{"$nulls":4},{"$f":"Időintervallumok!E8","v":"07:15:00"},{"$f":"IFERROR(INDEX(Eseményütemező[],MATCH(DATEVALUE(DátumÉrt)&Napirend[[#This Row],[Időpont]],DátumÉsIdőpontKeresése,0),3),\"\")","v":""},null,null,{"$f":"IFERROR(INDEX(Eseményütemező[],MATCH($H$6&\"|\"&ROW(A6),Eseményütemező[EGYEDI ÉRTÉK (SZÁMÍTOTT)],0),2),\"\")","v":""},{"$f":"IFERROR(INDEX(Eseményütemező[],MATCH($H$6&\"|\"&ROW(A6),Eseményütemező[EGYEDI ÉRTÉK (SZÁMÍTOTT)],0),3),\"\")","v":""}]
[{"$nulls":4},{"$f":"Időintervallumok!E9","v":"07:30:00"},{"$f":"IFERROR(INDEX(Eseményütemező[],MATCH(DATEVALUE(DátumÉrt)&Napirend[[#This Row],[Időpont]],DátumÉsIdőpontKeresése,0),3),\"\")","v":"Indulás a munkába"},null,{"$f":"IFERROR(TEXT(DATEVALUE(DátumÉrt)+2,\"nnnn\"),\"\")","v":"vasárnap"},{"$f":"IFERROR(INDEX(Eseményütemező[],MATCH($H$12&\"|\"&ROW(A1),Eseményütemező[EGYEDI ÉRTÉK (SZÁMÍTOTT)],0),2),\"\")","v":""},{"$f":"IFERROR(INDEX(Eseményütemező[],MATCH($H$12&\"|\"&ROW(A1),Eseményütemező[EGYEDI ÉRTÉK (SZÁMÍTOTT)],0),3),\"\")","v":""}]
[{"$nulls":4},{"$f":"Időintervallumok!E10","v":"07:45:00"},{"$f":"IFERROR(INDEX(Eseményütemező[],MATCH(DATEVALUE(DátumÉrt)&Napirend[[#This Row],[Időpont]],DátumÉsIdőpontKeresése,0),3),\"\")","v":""},null,{"$f":"IFERROR(TEXT(DATEVALUE(DátumÉrt)+2,\"n\"),\"\")","v":"8"},{"$f":"IFERROR(INDEX(Eseményütemező[],MATCH($H$12&\"|\"&ROW(A2),Eseményütemező[EGYEDI ÉRTÉK (SZÁMÍTOTT)],0),2),\"\")","v":""},{"$f":"IFERROR(INDEX(Eseményütemező[],MATCH($H$12&\"|\"&ROW(A2),Eseményütemező[EGYEDI ÉRTÉK (SZÁMÍTOTT)],0),3),\"\")","v":""}]
[null,"NAPIREND MEGTEKINTÉSE",null,null,{"$f":"Időintervallumok!E11","v":"08:00:00"},{"$f":"IFERROR(INDEX(Eseményütemező[],MATCH(DATEVALUE(DátumÉrt)&Napirend[[#This Row],[Időpont]],DátumÉsIdőpontKeresése,0),3),\"\")","v":"Munkaidő kezdete"},null,null,{"$f":"IFERROR(INDEX(Eseményütemező[],MATCH($H$12&\"|\"&ROW(A3),Eseményütemező[EGYEDI ÉRTÉK (SZÁMÍTOTT)],0),2),\"\")","v":""},{"$f":"IFERROR(INDEX(Eseményütemező[],MATCH($H$12&\"|\"&ROW(A3),Eseményütemező[EGYEDI ÉRTÉK (SZÁMÍTOTT)],0),3),\"\")","v":""}]
[{"$nulls":4},{"$f":"Időintervallumok!E12","v":"08:15:00"},{"$f":"IFERROR(INDEX(Eseményütemező[],MATCH(DATEVALUE(DátumÉrt)&Napirend[[#This Row],[Időpont]],DátumÉsIdőpontKeresése,0),3),\"\")","v":""},null,{"$f":"IFERROR(DátumÉrt+2,\"\")","v":"2019-09-08"},{"$f":"IFERROR(INDEX(Eseményütemező[],MATCH($H$12&\"|\"&ROW(A4),Eseményütemező[EGYEDI ÉRTÉK (SZÁMÍTOTT)],0),2),\"\")","v":""},{"$f":"IFERROR(INDEX(Eseményütemező[],MATCH($H$12&\"|\"&ROW(A4),Eseményütemező[EGYEDI ÉRTÉK (SZÁMÍTOTT)],0),3),\"\")","v":""}]
[null,"Év",null,null,{"$f":"Időintervallumok!E13","v":"08:30:00"},{"$f":"IFERROR(INDEX(Eseményütemező[],MATCH(DATEVALUE(DátumÉrt)&Napirend[[#This Row],[Időpont]],DátumÉsIdőpontKeresése,0),3),\"\")","v":""},null,null,{"$f":"IFERROR(INDEX(Eseményütemező[],MATCH($H$12&\"|\"&ROW(A5),Eseményütemező[EGYEDI ÉRTÉK (SZÁMÍTOTT)],0),2),\"\")","v":""},{"$f":"IFERROR(INDEX(Eseményütemező[],MATCH($H$12&\"|\"&ROW(A5),Eseményütemező[EGYEDI ÉRTÉK (SZÁMÍTOTT)],0),3),\"\")","v":""}]
[{"$nulls":4},{"$f":"Időintervallumok!E14","v":"08:45:00"},{"$f":"IFERROR(INDEX(Eseményütemező[],MATCH(DATEVALUE(DátumÉrt)&Napirend[[#This Row],[Időpont]],DátumÉsIdőpontKeresése,0),3),\"\")","v":""},null,null,{"$f":"IFERROR(INDEX(Eseményütemező[],MATCH($H$12&\"|\"&ROW(A6),Eseményütemező[EGYEDI ÉRTÉK (SZÁMÍTOTT)],0),2),\"\")","v":""},{"$f":"IFERROR(INDEX(Eseményütemező[],MATCH($H$12&\"|\"&ROW(A6),Eseményütemező[EGYEDI ÉRTÉK (SZÁMÍTOTT)],0),3),\"\")","v":""}]
[null,"Hónap",null,null,{"$f":"Időintervallumok!E15","v":"09:00:00"},{"$f":"IFERROR(INDEX(Eseményütemező[],MATCH(DATEVALUE(DátumÉrt)&Napirend[[#This Row],[Időpont]],DátumÉsIdőpontKeresése,0),3),\"\")","v":""},null,{"$f":"IFERROR(TEXT(DATEVALUE(DátumÉrt)+3,\"nnnn\"),\"\")","v":"hétfő"},{"$f":"IFERROR(INDEX(Eseményütemező[],MATCH($H$18&\"|\"&ROW(A1),Eseményütemező[EGYEDI ÉRTÉK (SZÁMÍTOTT)],0),2),\"\")","v":""},{"$f":"IFERROR(INDEX(Eseményütemező[],MATCH($H$18&\"|\"&ROW(A1),Eseményütemező[EGYEDI ÉRTÉK (SZÁMÍTOTT)],0),3),\"\")","v":""}]
[{"$nulls":4},{"$f":"Időintervallumok!E16","v":"09:15:00"},{"$f":"IFERROR(INDEX(Eseményütemező[],MATCH(DATEVALUE(DátumÉrt)&Napirend[[#This Row],[Időpont]],DátumÉsIdőpontKeresése,0),3),\"\")","v":""},null,{"$f":"IFERROR(TEXT(DATEVALUE(DátumÉrt)+3,\"n\"),\"\")","v":"9"},{"$f":"IFERROR(INDEX(Eseményütemező[],MATCH($H$18&\"|\"&ROW(A2),Eseményütemező[EGYEDI ÉRTÉK (SZÁMÍTOTT)],0),2),\"\")","v":""},{"$f":"IFERROR(INDEX(Eseményütemező[],MATCH($H$18&\"|\"&ROW(A2),Eseményütemező[EGYEDI ÉRTÉK (SZÁMÍTOTT)],0),3),\"\")","v":""}]
[null,"Nap",null,null,{"$f":"Időintervallumok!E17","v":"09:30:00"},{"$f":"IFERROR(INDEX(Eseményütemező[],MATCH(DATEVALUE(DátumÉrt)&Napirend[[#This Row],[Időpont]],DátumÉsIdőpontKeresése,0),3),\"\")","v":""},null,null,{"$f":"IFERROR(INDEX(Eseményütemező[],MATCH($H$18&\"|\"&ROW(A3),Eseményütemező[EGYEDI ÉRTÉK (SZÁMÍTOTT)],0),2),\"\")","v":""},{"$f":"IFERROR(INDEX(Eseményütemező[],MATCH($H$18&\"|\"&ROW(A3),Eseményütemező[EGYEDI ÉRTÉK (SZÁMÍTOTT)],0),3),\"\")","v":""}]
[{"$nulls":4},{"$f":"Időintervallumok!E18","v":"09:45:00"},{"$f":"IFERROR(INDEX(Eseményütemező[],MATCH(DATEVALUE(DátumÉrt)&Napirend[[#This Row],[Időpont]],DátumÉsIdőpontKeresése,0),3),\"\")","v":""},null,{"$f":"IFERROR(DátumÉrt+3,\"\")","v":"2019-09-09"},{"$f":"IFERROR(INDEX(Eseményütemező[],MATCH($H$18&\"|\"&ROW(A4),Eseményütemező[EGYEDI ÉRTÉK (SZÁMÍTOTT)],0),2),\"\")","v":""},{"$f":"IFERROR(INDEX(Eseményütemező[],MATCH($H$18&\"|\"&ROW(A4),Eseményütemező[EGYEDI ÉRTÉK (SZÁMÍTOTT)],0),3),\"\")","v":""}]
[null,"NAPIREND SZERKESZTÉSE",null,null,{"$f":"Időintervallumok!E19","v":"10:00:00"},{"$f":"IFERROR(INDEX(Eseményütemező[],MATCH(DATEVALUE(DátumÉrt)&Napirend[[#This Row],[Időpont]],DátumÉsIdőpontKeresése,0),3),\"\")","v":"Szünet"},null,null,{"$f":"IFERROR(INDEX(Eseményütemező[],MATCH($H$18&\"|\"&ROW(A5),Eseményütemező[EGYEDI ÉRTÉK (SZÁMÍTOTT)],0),2),\"\")","v":""},{"$f":"IFERROR(INDEX(Eseményütemező[],MATCH($H$18&\"|\"&ROW(A5),Eseményütemező[EGYEDI ÉRTÉK (SZÁMÍTOTT)],0),3),\"\")","v":""}]
[{"$nulls":4},{"$f":"Időintervallumok!E20","v":"10:15:00"},{"$f":"IFERROR(INDEX(Eseményütemező[],MATCH(DATEVALUE(DátumÉrt)&Napirend[[#This Row],[Időpont]],DátumÉsIdőpontKeresése,0),3),\"\")","v":""},null,null,{"$f":"IFERROR(INDEX(Eseményütemező[],MATCH($H$18&\"|\"&ROW(A6),Eseményütemező[EGYEDI ÉRTÉK (SZÁMÍTOTT)],0),2),\"\")","v":""},{"$f":"IFERROR(INDEX(Eseményütemező[],MATCH($H$18&\"|\"&ROW(A6),Eseményütemező[EGYEDI ÉRTÉK (SZÁMÍTOTT)],0),3),\"\")","v":""}]
[null,"Ide kattintva szerkesztheti az időintervallumokat",null,null,{"$f":"Időintervallumok!E21","v":"10:30:00"},{"$f":"IFERROR(INDEX(Eseményütemező[],MATCH(DATEVALUE(DátumÉrt)&Napirend[[#This Row],[Időpont]],DátumÉsIdőpontKeresése,0),3),\"\")","v":""},null,{"$f":"IFERROR(TEXT(DATEVALUE(DátumÉrt)+4,\"nnnn\"),\"\")","v":"kedd"},{"$f":"IFERROR(INDEX(Eseményütemező[],MATCH($H$24&\"|\"&ROW(A1),Eseményütemező[EGYEDI ÉRTÉK (SZÁMÍTOTT)],0),2),\"\")","v":""},{"$f":"IFERROR(INDEX(Eseményütemező[],MATCH($H$24&\"|\"&ROW(A1),Eseményütemező[EGYEDI ÉRTÉK (SZÁMÍTOTT)],0),3),\"\")","v":""}]
[{"$nulls":4},{"$f":"Időintervallumok!E22","v":"10:45:00"},{"$f":"IFERROR(INDEX(Eseményütemező[],MATCH(DATEVALUE(DátumÉrt)&Napirend[[#This Row],[Időpont]],DátumÉsIdőpontKeresése,0),3),\"\")","v":""},null,{"$f":"IFERROR(TEXT(DATEVALUE(DátumÉrt)+4,\"n\"),\"\")","v":"10"},{"$f":"IFERROR(INDEX(Eseményütemező[],MATCH($H$24&\"|\"&ROW(A2),Eseményütemező[EGYEDI ÉRTÉK (SZÁMÍTOTT)],0),2),\"\")","v":""},{"$f":"IFERROR(INDEX(Eseményütemező[],MATCH($H$24&\"|\"&ROW(A2),Eseményütemező[EGYEDI ÉRTÉK (SZÁMÍTOTT)],0),3),\"\")","v":""}]
[null,"Itt adhat hozzá új eseményt",null,null,{"$f":"Időintervallumok!E23","v":"11:00:00"},{"$f":"IFERROR(INDEX(Eseményütemező[],MATCH(DATEVALUE(DátumÉrt)&Napirend[[#This Row],[Időpont]],DátumÉsIdőpontKeresése,0),3),\"\")","v":""},null,null,{"$f":"IFERROR(INDEX(Eseményütemező[],MATCH($H$24&\"|\"&ROW(A3),Eseményütemező[EGYEDI ÉRTÉK (SZÁMÍTOTT)],0),2),\"\")","v":""},{"$f":"IFERROR(INDEX(Eseményütemező[],MATCH($H$24&\"|\"&ROW(A3),Eseményütemező[EGYEDI ÉRTÉK (SZÁMÍTOTT)],0),3),\"\")","v":""}]
[{"$nulls":4},{"$f":"Időintervallumok!E24","v":"11:15:00"},{"$f":"IFERROR(INDEX(Eseményütemező[],MATCH(DATEVALUE(DátumÉrt)&Napirend[[#This Row],[Időpont]],DátumÉsIdőpontKeresése,0),3),\"\")","v":""},null,{"$f":"IFERROR(DátumÉrt+4,\"\")","v":"2019-09-10"},{"$f":"IFERROR(INDEX(Eseményütemező[],MATCH($H$24&\"|\"&ROW(A4),Eseményütemező[EGYEDI ÉRTÉK (SZÁMÍTOTT)],0),2),\"\")","v":""},{"$f":"IFERROR(INDEX(Eseményütemező[],MATCH($H$24&\"|\"&ROW(A4),Eseményütemező[EGYEDI ÉRTÉK (SZÁMÍTOTT)],0),3),\"\")","v":""}]
[null,"KIEMELÉS A NAPIRENDBEN:",null,null,{"$f":"Időintervallumok!E25","v":"11:30:00"},{"$f":"IFERROR(INDEX(Eseményütemező[],MATCH(DATEVALUE(DátumÉrt)&Napirend[[#This Row],[Időpont]],DátumÉsIdőpontKeresése,0),3),\"\")","v":""},null,null,{"$f":"IFERROR(INDEX(Eseményütemező[],MATCH($H$24&\"|\"&ROW(A5),Eseményütemező[EGYEDI ÉRTÉK (SZÁMÍTOTT)],0),2),\"\")","v":""},{"$f":"IFERROR(INDEX(Eseményütemező[],MATCH($H$24&\"|\"&ROW(A5),Eseményütemező[EGYEDI ÉRTÉK (SZÁMÍTOTT)],0),3),\"\")","v":""}]
[null,"Szünet",null,null,{"$f":"Időintervallumok!E26","v":"11:45:00"},{"$f":"IFERROR(INDEX(Eseményütemező[],MATCH(DATEVALUE(DátumÉrt)&Napirend[[#This Row],[Időpont]],DátumÉsIdőpontKeresése,0),3),\"\")","v":""},null,{"$f":"IFERROR(TEXT(DATEVALUE(DátumÉrt)+5,\"nnnn\"),\"\")","v":"szerda"},{"$f":"IFERROR(INDEX(Eseményütemező[],MATCH($H$29&\"|\"&ROW(A1),Eseményütemező[EGYEDI ÉRTÉK (SZÁMÍTOTT)],0),2),\"\")","v":""},{"$f":"IFERROR(INDEX(Eseményütemező[],MATCH($H$29&\"|\"&ROW(A1),Eseményütemező[EGYEDI ÉRTÉK (SZÁMÍTOTT)],0),3),\"\")","v":""}]
[{"$nulls":4},{"$f":"Időintervallumok!E27","v":"12:00:00"},{"$f":"IFERROR(INDEX(Eseményütemező[],MATCH(DATEVALUE(DátumÉrt)&Napirend[[#This Row],[Időpont]],DátumÉsIdőpontKeresése,0),3),\"\")","v":"Ebéd"},null,{"$f":"IFERROR(TEXT(DATEVALUE(DátumÉrt)+5,\"n\"),\"\")","v":"11"},{"$f":"IFERROR(INDEX(Eseményütemező[],MATCH($H$29&\"|\"&ROW(A2),Eseményütemező[EGYEDI ÉRTÉK (SZÁMÍTOTT)],0),2),\"\")","v":""},{"$f":"IFERROR(INDEX(Eseményütemező[],MATCH($H$29&\"|\"&ROW(A2),Eseményütemező[EGYEDI ÉRTÉK (SZÁMÍTOTT)],0),3),\"\")","v":""}]
[{"$nulls":4},{"$f":"Időintervallumok!E28","v":"12:15:00"},{"$f":"IFERROR(INDEX(Eseményütemező[],MATCH(DATEVALUE(DátumÉrt)&Napirend[[#This Row],[Időpont]],DátumÉsIdőpontKeresése,0),3),\"\")","v":""},null,null,{"$f":"IFERROR(INDEX(Eseményütemező[],MATCH($H$29&\"|\"&ROW(A3),Eseményütemező[EGYEDI ÉRTÉK (SZÁMÍTOTT)],0),2),\"\")","v":""},{"$f":"IFERROR(INDEX(Eseményütemező[],MATCH($H$29&\"|\"&ROW(A3),Eseményütemező[EGYEDI ÉRTÉK (SZÁMÍTOTT)],0),3),\"\")","v":""}]
[{"$nulls":4},{"$f":"Időintervallumok!E29","v":"12:30:00"},{"$f":"IFERROR(INDEX(Eseményütemező[],MATCH(DATEVALUE(DátumÉrt)&Napirend[[#This Row],[Időpont]],DátumÉsIdőpontKeresése,0),3),\"\")","v":""},null,{"$f":"IFERROR(DátumÉrt+5,\"\")","v":"2019-09-11"},{"$f":"IFERROR(INDEX(Eseményütemező[],MATCH($H$29&\"|\"&ROW(A4),Eseményütemező[EGYEDI ÉRTÉK (SZÁMÍTOTT)],0),2),\"\")","v":""},{"$f":"IFERROR(INDEX(Eseményütemező[],MATCH($H$29&\"|\"&ROW(A4),Eseményütemező[EGYEDI ÉRTÉK (SZÁMÍTOTT)],0),3),\"\")","v":""}]
[{"$nulls":4},{"$f":"Időintervallumok!E30","v":"12:45:00"},{"$f":"IFERROR(INDEX(Eseményütemező[],MATCH(DATEVALUE(DátumÉrt)&Napirend[[#This Row],[Időpont]],DátumÉsIdőpontKeresése,0),3),\"\")","v":""},null,null,{"$f":"IFERROR(INDEX(Eseményütemező[],MATCH($H$29&\"|\"&ROW(A5),Eseményütemező[EGYEDI ÉRTÉK (SZÁMÍTOTT)],0),2),\"\")","v":""},{"$f":"IFERROR(INDEX(Eseményütemező[],MATCH($H$29&\"|\"&ROW(A5),Eseményütemező[EGYEDI ÉRTÉK (SZÁMÍTOTT)],0),3),\"\")","v":""}]
[{"$nulls":4},{"$f":"Időintervallumok!E31","v":"13:00:00"},{"$f":"IFERROR(INDEX(Eseményütemező[],MATCH(DATEVALUE(DátumÉrt)&Napirend[[#This Row],[Időpont]],DátumÉsIdőpontKeresése,0),3),\"\")","v":""},null,{"$f":"IFERROR(TEXT(DATEVALUE(DátumÉrt)+6,\"nnnn\"),\"\")","v":"csütörtök"},{"$f":"IFERROR(INDEX(Eseményütemező[],MATCH($H$34&\"|\"&ROW(A1),Eseményütemező[EGYEDI ÉRTÉK (SZÁMÍTOTT)],0),2),\"\")","v":""},{"$f":"IFERROR(INDEX(Eseményütemező[],MATCH($H$34&\"|\"&ROW(A1),Eseményütemező[EGYEDI ÉRTÉK (SZÁMÍTOTT)],0),3),\"\")","v":""}]
[{"$nulls":4},{"$f":"Időintervallumok!E32","v":"13:15:00"},{"$f":"IFERROR(INDEX(Eseményütemező[],MATCH(DATEVALUE(DátumÉrt)&Napirend[[#This Row],[Időpont]],DátumÉsIdőpontKeresése,0),3),\"\")","v":""},null,{"$f":"IFERROR(TEXT(DATEVALUE(DátumÉrt)+6,\"n\"),\"\")","v":"12"},{"$f":"IFERROR(INDEX(Eseményütemező[],MATCH($H$34&\"|\"&ROW(A2),Eseményütemező[EGYEDI ÉRTÉK (SZÁMÍTOTT)],0),2),\"\")","v":""},{"$f":"IFERROR(INDEX(Eseményütemező[],MATCH($H$34&\"|\"&ROW(A2),Eseményütemező[EGYEDI ÉRTÉK (SZÁMÍTOTT)],0),3),\"\")","v":""}]
[{"$nulls":4},{"$f":"Időintervallumok!E33","v":"13:30:00"},{"$f":"IFERROR(INDEX(Eseményütemező[],MATCH(DATEVALUE(DátumÉrt)&Napirend[[#This Row],[Időpont]],DátumÉsIdőpontKeresése,0),3),\"\")","v":"Telefonok intézése"},null,null,{"$f":"IFERROR(INDEX(Eseményütemező[],MATCH($H$34&\"|\"&ROW(A3),Eseményütemező[EGYEDI ÉRTÉK (SZÁMÍTOTT)],0),2),\"\")","v":""},{"$f":"IFERROR(INDEX(Eseményütemező[],MATCH($H$34&\"|\"&ROW(A3),Eseményütemező[EGYEDI ÉRTÉK (SZÁMÍTOTT)],0),3),\"\")","v":""}]
[{"$nulls":4},{"$f":"Időintervallumok!E34","v":"13:45:00"},{"$f":"IFERROR(INDEX(Eseményütemező[],MATCH(DATEVALUE(DátumÉrt)&Napirend[[#This Row],[Időpont]],DátumÉsIdőpontKeresése,0),3),\"\")","v":""},null,{"$f":"IFERROR(DátumÉrt+6,\"\")","v":"2019-09-12"},{"$f":"IFERROR(INDEX(Eseményütemező[],MATCH($H$34&\"|\"&ROW(A4),Eseményütemező[EGYEDI ÉRTÉK (SZÁMÍTOTT)],0),2),\"\")","v":""},{"$f":"IFERROR(INDEX(Eseményütemező[],MATCH($H$34&\"|\"&ROW(A4),Eseményütemező[EGYEDI ÉRTÉK (SZÁMÍTOTT)],0),3),\"\")","v":""}]
[{"$nulls":4},{"$f":"Időintervallumok!E35","v":"14:00:00"},{"$f":"IFERROR(INDEX(Eseményütemező[],MATCH(DATEVALUE(DátumÉrt)&Napirend[[#This Row],[Időpont]],DátumÉsIdőpontKeresése,0),3),\"\")","v":""},null,null,{"$f":"IFERROR(INDEX(Eseményütemező[],MATCH($H$34&\"|\"&ROW(A5),Eseményütemező[EGYEDI ÉRTÉK (SZÁMÍTOTT)],0),2),\"\")","v":""},{"$f":"IFERROR(INDEX(Eseményütemező[],MATCH($H$34&\"|\"&ROW(A5),Eseményütemező[EGYEDI ÉRTÉK (SZÁMÍTOTT)],0),3),\"\")","v":""}]
[{"$nulls":4},{"$f":"Időintervallumok!E36","v":"14:15:00"},{"$f":"IFERROR(INDEX(Eseményütemező[],MATCH(DATEVALUE(DátumÉrt)&Napirend[[#This Row],[Időpont]],DátumÉsIdőpontKeresése,0),3),\"\")","v":""}]
[{"$nulls":4},{"$f":"Időintervallumok!E37","v":"14:30:00"},{"$f":"IFERROR(INDEX(Eseményütemező[],MATCH(DATEVALUE(DátumÉrt)&Napirend[[#This Row],[Időpont]],DátumÉsIdőpontKeresése,0),3),\"\")","v":""}]
[{"$nulls":4},{"$f":"Időintervallumok!E38","v":"14:45:00"},{"$f":"IFERROR(INDEX(Eseményütemező[],MATCH(DATEVALUE(DátumÉrt)&Napirend[[#This Row],[Időpont]],DátumÉsIdőpontKeresése,0),3),\"\")","v":""}]
[{"$nulls":4},{"$f":"Időintervallumok!E39","v":"15:00:00"},{"$f":"IFERROR(INDEX(Eseményütemező[],MATCH(DATEVALUE(DátumÉrt)&Napirend[[#This Row],[Időpont]],DátumÉsIdőpontKeresése,0),3),\"\")","v":"Szünet"}]
[{"$nulls":4},{"$f":"Időintervallumok!E40","v":"15:15:00"},{"$f":"IFERROR(INDEX(Eseményütemező[],MATCH(DATEVALUE(DátumÉrt)&Napirend[[#This Row],[Időpont]],DátumÉsIdőpontKeresése,0),3),\"\")","v":""}]
[{"$nulls":4},{"$f":"Időintervallumok!E41","v":"15:30:00"},{"$f":"IFERROR(INDEX(Eseményütemező[],MATCH(DATEVALUE(DátumÉrt)&Napirend[[#This Row],[Időpont]],DátumÉsIdőpontKeresése,0),3),\"\")","v":""}]
[{"$nulls":4},{"$f":"Időintervallumok!E42","v":"15:45:00"},{"$f":"IFERROR(INDEX(Eseményütemező[],MATCH(DATEVALUE(DátumÉrt)&Napirend[[#This Row],[Időpont]],DátumÉsIdőpontKeresése,0),3),\"\")","v":""}]
[{"$nulls":4},{"$f":"Időintervallumok!E43","v":"16:00:00"},{"$f":"IFERROR(INDEX(Eseményütemező[],MATCH(DATEVALUE(DátumÉrt)&Napirend[[#This Row],[Időpont]],DátumÉsIdőpontKeresése,0),3),\"\")","v":""}]
[{"$nulls":4},{"$f":"Időintervallumok!E44","v":"16:15:00"},{"$f":"IFERROR(INDEX(Eseményütemező[],MATCH(DATEVALUE(DátumÉrt)&Napirend[[#This Row],[Időpont]],DátumÉsIdőpontKeresése,0),3),\"\")","v":""}]
[{"$nulls":4},{"$f":"Időintervallumok!E45","v":"16:30:00"},{"$f":"IFERROR(INDEX(Eseményütemező[],MATCH(DATEVALUE(DátumÉrt)&Napirend[[#This Row],[Időpont]],DátumÉsIdőpontKeresése,0),3),\"\")","v":""}]
[{"$nulls":4},{"$f":"Időintervallumok!E46","v":"16:45:00"},{"$f":"IFERROR(INDEX(Eseményütemező[],MATCH(DATEVALUE(DátumÉrt)&Napirend[[#This Row],[Időpont]],DátumÉsIdőpontKeresése,0),3),\"\")","v":""}]
[{"$nulls":4},{"$f":"Időintervallumok!E47","v":"17:00:00"},{"$f":"IFERROR(INDEX(Eseményütemező[],MATCH(DATEVALUE(DátumÉrt)&Napirend[[#This Row],[Időpont]],DátumÉsIdőpontKeresése,0),3),\"\")","v":"Indulás haza"}]
[{"$nulls":4},{"$f":"Időintervallumok!E48","v":"17:15:00"},{"$f":"IFERROR(INDEX(Eseményütemező[],MATCH(DATEVALUE(DátumÉrt)&Napirend[[#This Row],[Időpont]],DátumÉsIdőpontKeresése,0),3),\"\")","v":""}]
[{"$nulls":4},{"$f":"Időintervallumok!E49","v":"17:30:00"},{"$f":"IFERROR(INDEX(Eseményütemező[],MATCH(DATEVALUE(DátumÉrt)&Napirend[[#This Row],[Időpont]],DátumÉsIdőpontKeresése,0),3),\"\")","v":""}]
[{"$nulls":4},{"$f":"Időintervallumok!E50","v":"17:45:00"},{"$f":"IFERROR(INDEX(Eseményütemező[],MATCH(DATEVALUE(DátumÉrt)&Napirend[[#This Row],[Időpont]],DátumÉsIdőpontKeresése,0),3),\"\")","v":""}]
[{"$nulls":4},{"$f":"Időintervallumok!E51","v":"18:00:00"},{"$f":"IFERROR(INDEX(Eseményütemező[],MATCH(DATEVALUE(DátumÉrt)&Napirend[[#This Row],[Időpont]],DátumÉsIdőpontKeresése,0),3),\"\")","v":"Fociedzés"}]
[{"$nulls":4},{"$f":"Időintervallumok!E52","v":"18:15:00"},{"$f":"IFERROR(INDEX(Eseményütemező[],MATCH(DATEVALUE(DátumÉrt)&Napirend[[#This Row],[Időpont]],DátumÉsIdőpontKeresése,0),3),\"\")","v":""}]
[{"$nulls":4},{"$f":"Időintervallumok!E53","v":"18:30:00"},{"$f":"IFERROR(INDEX(Eseményütemező[],MATCH(DATEVALUE(DátumÉrt)&Napirend[[#This Row],[Időpont]],DátumÉsIdőpontKeresése,0),3),\"\")","v":""}]
[{"$nulls":4},{"$f":"Időintervallumok!E54","v":"18:45:00"},{"$f":"IFERROR(INDEX(Eseményütemező[],MATCH(DATEVALUE(DátumÉrt)&Napirend[[#This Row],[Időpont]],DátumÉsIdőpontKeresése,0),3),\"\")","v":""}]
[{"$nulls":4},{"$f":"Időintervallumok!E55","v":"19:00:00"},{"$f":"IFERROR(INDEX(Eseményütemező[],MATCH(DATEVALUE(DátumÉrt)&Napirend[[#This Row],[Időpont]],DátumÉsIdőpontKeresése,0),3),\"\")","v":""}]
[{"$nulls":4},{"$f":"Időintervallumok!E56","v":"19:15:00"},{"$f":"IFERROR(INDEX(Eseményütemező[],MATCH(DATEVALUE(DátumÉrt)&Napirend[[#This Row],[Időpont]],DátumÉsIdőpontKeresése,0),3),\"\")","v":""}]
[{"$nulls":4},{"$f":"Időintervallumok!E57","v":"19:30:00"},{"$f":"IFERROR(INDEX(Eseményütemező[],MATCH(DATEVALUE(DátumÉrt)&Napirend[[#This Row],[Időpont]],DátumÉsIdőpontKeresése,0),3),\"\")","v":""}]
[{"$nulls":4},{"$f":"Időintervallumok!E58","v":"19:45:00"},{"$f":"IFERROR(INDEX(Eseményütemező[],MATCH(DATEVALUE(DátumÉrt)&Napirend[[#This Row],[Időpont]],DátumÉsIdőpontKeresése,0),3),\"\")","v":""}]
[{"$nulls":4},{"$f":"Időintervallumok!E59","v":"20:00:00"},{"$f":"IFERROR(INDEX(Eseményütemező[],MATCH(DATEVALUE(DátumÉrt)&Napirend[[#This Row],[Időpont]],DátumÉsIdőpontKeresése,0),3),\"\")","v":""}]
[{"$nulls":4},{"$f":"Időintervallumok!E60","v":"20:15:00"},{"$f":"IFERROR(INDEX(Eseményütemező[],MATCH(DATEVALUE(DátumÉrt)&Napirend[[#This Row],[Időpont]],DátumÉsIdőpontKeresése,0),3),\"\")","v":""}]
[{"$nulls":4},{"$f":"Időintervallumok!E61","v":"20:30:00"},{"$f":"IFERROR(INDEX(Eseményütemező[],MATCH(DATEVALUE(DátumÉrt)&Napirend[[#This Row],[Időpont]],DátumÉsIdőpontKeresése,0),3),\"\")","v":""}]
[{"$nulls":4},{"$f":"Időintervallumok!E62","v":"20:45:00"},{"$f":"IFERROR(INDEX(Eseményütemező[],MATCH(DATEVALUE(DátumÉrt)&Napirend[[#This Row],[Időpont]],DátumÉsIdőpontKeresése,0),3),\"\")","v":""}]
[{"$nulls":4},{"$f":"Időintervallumok!E63","v":"21:00:00"},{"$f":"IFERROR(INDEX(Eseményütemező[],MATCH(DATEVALUE(DátumÉrt)&Napirend[[#This Row],[Időpont]],DátumÉsIdőpontKeresése,0),3),\"\")","v":""}]
[{"$nulls":4},{"$f":"Időintervallumok!E64","v":""},{"$f":"IFERROR(INDEX(Eseményütemező[],MATCH(DATEVALUE(DátumÉrt)&Napirend[[#This Row],[Időpont]],DátumÉsIdőpontKeresése,0),3),\"\")","v":""}]
[{"$nulls":4},{"$f":"Időintervallumok!E65","v":""},{"$f":"IFERROR(INDEX(Eseményütemező[],MATCH(DATEVALUE(DátumÉrt)&Napirend[[#This Row],[Időpont]],DátumÉsIdőpontKeresése,0),3),\"\")","v":""}]
[{"$nulls":4},{"$f":"Időintervallumok!E66","v":""},{"$f":"IFERROR(INDEX(Eseményütemező[],MATCH(DATEVALUE(DátumÉrt)&Napirend[[#This Row],[Időpont]],DátumÉsIdőpontKeresése,0),3),\"\")","v":""}]
[{"$nulls":4},{"$f":"Időintervallumok!E67","v":""},{"$f":"IFERROR(INDEX(Eseményütemező[],MATCH(DATEVALUE(DátumÉrt)&Napirend[[#This Row],[Időpont]],DátumÉsIdőpontKeresése,0),3),\"\")","v":""}]
[{"$nulls":4},{"$f":"Időintervallumok!E68","v":""},{"$f":"IFERROR(INDEX(Eseményütemező[],MATCH(DATEVALUE(DátumÉrt)&Napirend[[#This Row],[Időpont]],DátumÉsIdőpontKeresése,0),3),\"\")","v":""}]
[{"$nulls":4},{"$f":"Időintervallumok!E69","v":""},{"$f":"IFERROR(INDEX(Eseményütemező[],MATCH(DATEVALUE(DátumÉrt)&Napirend[[#This Row],[Időpont]],DátumÉsIdőpontKeresése,0),3),\"\")","v":""}]
[{"$nulls":4},{"$f":"Időintervallumok!E70","v":""},{"$f":"IFERROR(INDEX(Eseményütemező[],MATCH(DATEVALUE(DátumÉrt)&Napirend[[#This Row],[Időpont]],DátumÉsIdőpontKeresése,0),3),\"\")","v":""}]
[{"$nulls":4},{"$f":"Időintervallumok!E71","v":""},{"$f":"IFERROR(INDEX(Eseményütemező[],MATCH(DATEVALUE(DátumÉrt)&Napirend[[#This Row],[Időpont]],DátumÉsIdőpontKeresése,0),3),\"\")","v":""}]
[{"$nulls":4},{"$f":"Időintervallumok!E72","v":""},{"$f":"IFERROR(INDEX(Eseményütemező[],MATCH(DATEVALUE(DátumÉrt)&Napirend[[#This Row],[Időpont]],DátumÉsIdőpontKeresése,0),3),\"\")","v":""}]
[{"$nulls":4},{"$f":"Időintervallumok!E73","v":""},{"$f":"IFERROR(INDEX(Eseményütemező[],MATCH(DATEVALUE(DátumÉrt)&Napirend[[#This Row],[Időpont]],DátumÉsIdőpontKeresése,0),3),\"\")","v":""}]
[{"$nulls":4},{"$f":"Időintervallumok!E74","v":""},{"$f":"IFERROR(INDEX(Eseményütemező[],MATCH(DATEVALUE(DátumÉrt)&Napirend[[#This Row],[Időpont]],DátumÉsIdőpontKeresése,0),3),\"\")","v":""}]
[{"$nulls":4},{"$f":"Időintervallumok!E75","v":""},{"$f":"IFERROR(INDEX(Eseményütemező[],MATCH(DATEVALUE(DátumÉrt)&Napirend[[#This Row],[Időpont]],DátumÉsIdőpontKeresése,0),3),\"\")","v":""}]

{"sheet":"Eseményütemező","index":1,"n_rows":15,"n_cols":8,"rows_kept":15,"merged":[[1,1,4,2],[5,1,6,2],[7,1,7,2]]}
[null,"Eseményütemező"]
[null,{"$f":"DAY(DátumÉrt)","v":6},null,null,"DÁTUM","IDŐPONT","LEÍRÁS","EGYEDI ÉRTÉK (SZÁMÍTOTT)"]
[{"$nulls":4},{"$f":"TODAY()","v":"2019-09-06"},"06:00:00","Ébresztő",{"$f":"Eseményütemező[[#This Row],[DÁTUM]]&\"|\"&COUNTIF($E$3:E3,E3)","v":"43714|1"}]
[{"$nulls":4},{"$f":"TODAY()","v":"2019-09-06"},"06:30:00","Zuhany",{"$f":"Eseményütemező[[#This Row],[DÁTUM]]&\"|\"&COUNTIF($E$3:E4,E4)","v":"43714|2"}]
[{"$nulls":4},"2019-09-06","07:30:00","Indulás a munkába",{"$f":"Eseményütemező[[#This Row],[DÁTUM]]&\"|\"&COUNTIF($E$3:E5,E5)","v":"43714|3"}]
[null,{"$f":"TEXT(DátumÉrt,\"nnnn\")","v":"péntek"},null,null,"2019-09-06","08:00:00","Munkaidő kezdete",{"$f":"Eseményütemező[[#This Row],[DÁTUM]]&\"|\"&COUNTIF($E$3:E6,E6)","v":"43714|4"}]
[{"$nulls":4},"2019-09-06","10:00:00","Szünet",{"$f":"Eseményütemező[[#This Row],[DÁTUM]]&\"|\"&COUNTIF($E$3:E7,E7)","v":"43714|5"}]
[null,{"$f":"DátumÉrt","v":"2019.09.06"},null,null,"2019-09-06","12:00:00","Ebéd",{"$f":"Eseményütemező[[#This Row],[DÁTUM]]&\"|\"&COUNTIF($E$3:E8,E8)","v":"43714|6"}]
[{"$nulls":4},"2019-09-06","13:00:00","A munka folytatása",{"$f":"Eseményütemező[[#This Row],[DÁTUM]]&\"|\"&COUNTIF($E$3:E9,E9)","v":"43714|7"}]
[null,"Ide kattintva szerkesztheti az időintervallumokat",null,null,"2019-09-06","13:30:00","Telefonok intézése",{"$f":"Eseményütemező[[#This Row],[DÁTUM]]&\"|\"&COUNTIF($E$3:E10,E10)","v":"43714|8"}]
[{"$nulls":4},"2019-09-06","15:00:00","Szünet",{"$f":"Eseményütemező[[#This Row],[DÁTUM]]&\"|\"&COUNTIF($E$3:E11,E11)","v":"43714|9"}]
[null,"Válassza ezt a lehetőséget a Napirend megtekintéséhez",null,null,"2019-09-06","17:00:00","Indulás haza",{"$f":"Eseményütemező[[#This Row],[DÁTUM]]&\"|\"&COUNTIF($E$3:E12,E12)","v":"43714|10"}]
[{"$nulls":4},"2019-09-06","18:00:00","Fociedzés",{"$f":"Eseményütemező[[#This Row],[DÁTUM]]&\"|\"&COUNTIF($E$3:E13,E13)","v":"43714|11"}]
[{"$nulls":4},{"$f":"TODAY()+1","v":"2019-09-07"},"06:30:00","Reggeli",{"$f":"Eseményütemező[[#This Row],[DÁTUM]]&\"|\"&COUNTIF($E$3:E14,E14)","v":"43715|1"}]
[{"$nulls":4},{"$f":"TODAY()+1","v":"2019-09-07"},"07:30:00","Indulás a munkába",{"$f":"Eseményütemező[[#This Row],[DÁTUM]]&\"|\"&COUNTIF($E$3:E15,E15)","v":"43715|2"}]

{"sheet":"Időintervallumok","index":2,"n_rows":75,"n_cols":5,"rows_kept":75,"merged":[[1,1,1,2],[9,1,9,2]]}
[null,"Időintervallumok"]
[null,"IDŐTÁBLA SZERKESZTÉSE",null,null,"Időpont"]
[{"$nulls":4},{"$f":"Kezdés_időpontja","v":"06:00:00"}]
[null,"Kezdés időpontja","06:00:00",null,{"$f":"IFERROR(IF($E3+Növelés>BefejezésIdőpontja,\"\",$E3+Növelés),\"\")","v":"06:15:00"}]
[{"$nulls":4},"06:30:00"]
[null,"Időtartam","15 PERC",null,"06:45:00"]
[{"$nulls":4},"07:00:00"]
[null,"Befejezés időpontja","21:00:00",null,"07:15:00"]
[{"$nulls":4},"07:30:00"]
[null,"NAPIREND MEGTEKINTÉSE",null,null,"07:45:00"]
[{"$nulls":4},"08:00:00"]
[null,"Válassza ezt a lehetőséget a Napirend megtekintéséhez",null,null,"08:15:00"]
[{"$nulls":4},"08:30:00"]
[null,"Itt adhat hozzá új eseményt",null,null,"08:45:00"]
[{"$nulls":4},"09:00:00"]
[{"$nulls":4},"09:15:00"]
[{"$nulls":4},"09:30:00"]
[{"$nulls":4},"09:45:00"]
[{"$nulls":4},"10:00:00"]
[{"$nulls":4},"10:15:00"]
[{"$nulls":4},"10:30:00"]
[{"$nulls":4},"10:45:00"]
[{"$nulls":4},"11:00:00"]
[{"$nulls":4},"11:15:00"]
[{"$nulls":4},"11:30:00"]
[{"$nulls":4},"11:45:00"]
[{"$nulls":4},"12:00:00"]
[{"$nulls":4},"12:15:00"]
[{"$nulls":4},"12:30:00"]
[{"$nulls":4},"12:45:00"]
[{"$nulls":4},"13:00:00"]
[{"$nulls":4},"13:15:00"]
[{"$nulls":4},"13:30:00"]
[{"$nulls":4},"13:45:00"]
[{"$nulls":4},"14:00:00"]
[{"$nulls":4},{"$f":"IFERROR(IF($E35+Növelés>BefejezésIdőpontja,\"\",$E35+Növelés),\"\")","v":"14:15:00"}]
[{"$nulls":4},"14:30:00"]
[{"$nulls":4},"14:45:00"]
[{"$nulls":4},"15:00:00"]
[{"$nulls":4},"15:15:00"]
[{"$nulls":4},"15:30:00"]
[{"$nulls":4},"15:45:00"]
[{"$nulls":4},"16:00:00"]
[{"$nulls":4},"16:15:00"]
[{"$nulls":4},"16:30:00"]
[{"$nulls":4},"16:45:00"]
[{"$nulls":4},"17:00:00"]
[{"$nulls":4},"17:15:00"]
[{"$nulls":4},"17:30:00"]
[{"$nulls":4},"17:45:00"]
[{"$nulls":4},"18:00:00"]
[{"$nulls":4},"18:15:00"]
[{"$nulls":4},"18:30:00"]
[{"$nulls":4},"18:45:00"]
[{"$nulls":4},"19:00:00"]
[{"$nulls":4},"19:15:00"]
[{"$nulls":4},"19:30:00"]
[{"$nulls":4},"19:45:00"]
[{"$nulls":4},"20:00:00"]
[{"$nulls":4},"20:15:00"]
[{"$nulls":4},"20:30:00"]
[{"$nulls":4},"20:45:00"]
[{"$nulls":4},"21:00:00"]
[{"$nulls":4},""]
[{"$nulls":4},""]
[{"$nulls":4},""]
[{"$nulls":4},""]
[{"$nulls":4},{"$f":"IFERROR(IF($E67+Növelés>BefejezésIdőpontja,\"\",$E67+Növelés),\"\")","v":""}]
[{"$nulls":4},""]
[{"$nulls":4},""]
[{"$nulls":4},""]
[{"$nulls":4},""]
[{"$nulls":4},""]
[{"$nulls":4},""]
[{"$nulls":4},""]